Cogmind - Beta 15 @@@ ROGUE MODE // 2025.09.14 @ 17:38:14 Player: GermanMO Result: Destroyed by H-88 Terminator with KE Penetrator Performance ------------- Evolutions (8) 4000 Regions Visited (19) 3800 Robots Destroyed (91) 455 Value Destroyed (3213) 3213 Prototype IDs (11) 220 Alien Tech Used (0) 0 Bonus (1309) 1309 TOTAL SCORE: 12997 Bonus ------- High Alert Combat Kills 28 Follower Combat Kills 581 Entered Garrisons 200 Scanned by Researcher 500 Cogmind --------- Core Integrity 0/1450 Matter 240/300 Energy 41/100 System Corruption 18% Temperature Cool (0) Movement Core (50) Location -2/Testing Parts ------- > --- POWER (4) -------- (None) > --- PROPULSION (7) --- (None) > --- UTILITY (8) ------ (None) > --- WEAPON (4) ------- (None) > --- INVENTORY (5) ---- Improved Point Defense System Quantum Rifle Peak State ------------ > --- POWER ------------ Light Particle Reactor Quantum Reactor Light Quantum Reactor > --- PROPULSION ------- Biometal Leg Biometal Leg Biometal Leg Enhanced Biometal Leg Improved Gyrokinetic Inverter Improved Gyrokinetic Inverter Improved Gyrokinetic Inverter > --- UTILITY ---------- Advanced Power Amplifier Compact Matter Pod > --- WEAPON ----------- Compact HERF Cannon Smartbomb Launcher Powered Hammer > --- INVENTORY -------- Experimental Sensor Array Quantum Rifle Quantum Rifle Railgun [Rating: 117] Favorites ----------- Power Light Ion Engine Engine Light Ion Engine Power Core Micro Nuclear Core Reactor Light Particle Reactor Propulsion Wheel Leg Aluminum Leg Wheel Wheel Hover Unit Improved Gyrokinetic Inverter Flight Unit VTOL Module Utility Improved Terrain Scanner Device Improved Terrain Scanner Storage Compact Matter Pod Processor Advanced Targeting Computer Hackware System Shield Protection Layered Heavy Armor Plating Weapon Mining Laser Energy Gun EM Pulse Gun Energy Cannon Improved EM Pulse Cannon Ballistic Gun Coil Gun Ballistic Cannon Mini Assault Cannon Launcher Smartbomb Launcher Special Weapon Mining Laser Impact Weapon Powered Hammer Slashing Weapon Phasing Sabre Build | -11 -10 -10 -9 -9 -9 -8 -8 -7 -7 -7 -6 -6 -5 -5 -5 -4 -3 -2 -2 ------- Run | Yrd Mat Min Mat Min Exi Min Mat Fac Was Fac Fac Ext Fac Gar Fac Fac Res Res Tes Slots Evolved 16 | . . . 2 . . . 2 2 . . 2 . 2 . . 2 2 2 . Power 3 | . . . . . . . 1 . . . . . . . . 1 1 . . Propulsion 5 | . . . 2 . . . 1 1 . . . . 1 . . . . . . Utility 6 | . . . . . . . . 1 . . 2 . 1 . . 1 . 1 . Weapon 2 | . . . . . . . . . . . . . . . . . 1 1 . Parts Attached 131 | 17 . 10 . . . . 6 18 1 2 6 18 3 4 21 6 5 7 7 Power 16 | 3 . 1 . . . . 1 1 . 1 . 4 1 . 1 . 1 1 1 Engine 7 | 3 . 1 . . . . 1 . . . . 2 . . . . . . . Core 6 | . . . . . . . . 1 . 1 . 2 1 . 1 . . . . Reactor 3 | . . . . . . . . . . . . . . . . . 1 1 1 Propulsion 42 | 5 . 3 . . . . . 2 1 . 3 4 . 4 11 4 . 3 2 Treads . | . . . . . . . . . . . . . . . . . . . . Leg 9 | 2 . . . . . . . 2 . . . . . . 1 . . 3 1 Wheel 7 | 3 . 1 . . . . . . . . . . . . 2 1 . . . Hover 6 | . . . . . . . . . . . 1 . . . 1 3 . . 1 Flight 20 | . . 2 . . . . . . 1 . 2 4 . 4 7 . . . . Utility 35 | 4 . 2 . . . . . 7 . . 2 5 2 . 5 2 3 2 1 Device 26 | 4 . 1 . . . . . 4 . . . 4 2 . 5 2 3 1 . Storage 2 | . . 1 . . . . . . . . . . . . . . . 1 . Processor 5 | . . . . . . . . 2 . . 2 1 . . . . . . . Hackware 1 | . . . . . . . . 1 . . . . . . . . . . . Protection 1 | . . . . . . . . . . . . . . . . . . . 1 Artifact . | . . . . . . . . . . . . . . . . . . . . Weapon 38 | 5 . 4 . . . . 5 8 . 1 1 5 . . 4 . 1 1 3 Energy Gun 9 | 2 . . . . . . . 2 . . . 2 . . 1 . . . 2 Energy Cannon 5 | . . . . . . . 1 1 . 1 . . . . 1 . . 1 . Ballistic Gun 5 | . . 1 . . . . 1 1 . . 1 . . . . . . . 1 Ballistic Cannon 3 | . . . . . . . . 2 . . . 1 . . . . . . . Launcher 4 | . . 1 . . . . 1 1 . . . . . . . . 1 . . Special Weapon 6 | 3 . 2 . . . . . 1 . . . . . . . . . . . Impact Weapon 3 | . . . . . . . 2 . . . . . . . 1 . . . . Slashing Weapon 3 | . . . . . . . . . . . . 2 . . 1 . . . . Piercing Weapon . | . . . . . . . . . . . . . . . . . . . . Special Melee Weapon . | . . . . . . . . . . . . . . . . . . . . Unidentified Prototypes 7 | . . 1 . . . . 1 3 . . . . . . . . . . 2 Corrupted Parts 8 | 3 . 2 . . . . . . . . . . . . 1 . . . 2 System Corruption 27 | 5 . 9 . . . . . . . . . . . . 3 . . . 10 Parts Lost 92 | 5 . 3 1 . . 4 3 9 . 1 3 6 . 11 20 5 3 1 17 Power 10 | . . 1 . . . . 1 1 . . . 2 . 2 1 . . . 2 Propulsion 34 | 1 . . 1 . . 1 . 2 . . 1 2 . 7 10 3 . . 6 Utility 25 | 2 . . . . . 1 . 3 . 1 1 1 . 1 5 2 3 1 4 Weapon 23 | 2 . 2 . . . 2 2 3 . . 1 1 . 1 4 . . . 5 Highest Loss Streak 11 | 3 . 3 1 . . 3 1 4 . 1 2 4 . 9 11 3 3 1 9 To Critical Strikes . | . . . . . . . . . . . . . . . . . . . . Average Backups 3 | 3 4 2 2 2 2 2 1 3 5 5 3 3 3 3 3 2 1 2 3 Power . | . 1 . . . . . . . . . . . . . . . . . . Propulsion . | 1 1 . . . . . . . . . . . . . . 1 . . . Utility . | . . 1 2 2 2 2 1 2 4 4 3 2 2 2 2 1 1 1 1 Weapon 1 | 1 1 . . . . . . . 1 . . 1 1 1 . . . . 1 Tool/Special . | . . . . . . . . . . . . . . . . . . . . Unused Backups 7 | 2 1 . . . 1 . . . . . . 1 . . 1 . . . 1 Power 2 | . . . . . 1 . . . . . . 1 . . . . . . . Propulsion 3 | 2 1 . . . . . . . . . . . . . . . . . . Utility 2 | . . . . . . . . . . . . . . . 1 . . . 1 Weapon . | . . . . . . . . . . . . . . . . . . . . Tool/Special . | . . . . . . . . . . . . . . . . . . . . Average Slot Usage (%) 48 | . 40 84 55 44 44 19 24 35 27 42 47 78 77 80 49 23 26 43 32 Engine 1 | . . 10 . . . . 1 . . . . 2 . . . . . . . Core 2 | . . . . . . . . 2 . 5 6 3 8 7 2 . . . . Leg 2 | . . . . . . . . 6 . . . . . . 2 . . 9 8 Wheel 2 | . 18 22 . . . . . . . . . . . . . 5 . . . Hover 2 | . . . . . . . . . . . 4 4 . . . 2 14 13 8 Flight 7 | . . 4 22 11 11 9 . . 4 7 9 22 23 25 10 . . . . Device 6 | . 18 14 11 11 11 3 . 4 7 5 1 5 8 10 8 9 3 3 2 Storage 1 | . . 4 . . . . 7 1 . . . . . . . . . . 1 Processor 10 | . . . . . . . . 4 15 15 19 24 23 23 16 . . . . Energy Cannon 1 | . . . . . . . 4 1 . 6 2 . . . . . . 2 . Ballistic Gun 1 | . . 2 11 11 11 4 . 1 . . 1 6 5 4 . . . . . Special Weapon 1 | . 4 21 . . . . . . . . . . . . . . . . . Impact Weapon 1 | . . . . . . . 10 4 . . . . . . . 5 4 4 1 Peak Build Rating 117 | 10 9 17 9 8 8 8 19 29 20 28 38 54 53 53 54 39 49 98 117 Average Rating 14 | 6 5 9 8 8 8 3 8 17 18 26 30 40 51 49 35 27 39 76 57 On Entrance 23 | . 9 4 9 8 8 8 1 11 13 20 24 31 47 53 29 11 32 49 98 Naked Turns 50 | . . . . . . 26 18 . . . . . . . . . . . 6 Heaviest Build 72 | 10 3 9 6 6 6 6 14 16 1 14 13 24 28 28 28 6 29 57 72 Greatest Support 114 | 20 20 10 8 4 4 4 3 28 7 7 15 24 20 30 23 36 36 84 114 Greatest Overweight (x) 10 | . . 1 1 1 1 1 4 3 . 1 1 1 1 1 5 1 1 . 10 Average Overweight (x) . | . . . . 1 1 . 1 . . . . . . . . . . . . Largest Inventory Capacity 5 | 5 5 5 5 5 5 5 5 5 5 5 5 5 5 5 5 5 5 5 5 Average Capacity 5 | 5 5 5 5 5 5 5 5 5 5 5 5 5 5 5 5 5 5 5 5 Most Carried 5 | 5 5 5 2 2 3 2 3 5 5 5 5 5 5 5 5 4 4 5 5 Average Carried 3 | 3 4 2 2 2 2 2 1 3 5 5 3 3 3 3 3 2 1 2 3 Final Capacity 5 | 5 5 5 5 5 5 5 5 5 5 5 5 5 5 5 5 5 5 5 5 Final Carried 5 | 4 5 2 2 2 2 2 2 5 5 5 3 4 3 5 1 1 2 3 2 Class Distribution -------------------- 71% | Scavenger-Mutant 23% | Mutant Dominant Class ---------------- Mutant | -10/Materials Scavenger-Mutant | -10/Mines Scavenger-Mutant | -9/Materials Mutant | -9/Mines Mutant | -9/Exiles Mutant | -8/Mines Mutant | -8/Materials Mutant | -7/Factory Mutant | -7/Waste Mutant | -7/Factory Mutant | -6/Factory Scavenger-Mutant | -6/Extension Mutant | -5/Factory Mutant | -5/Garrison Mutant | -5/Factory Mutant | -4/Factory Mutant | -3/Research Gunner | -2/Research Mutant | -2/Testing Resources | -11 -10 -10 -9 -9 -9 -8 -8 -7 -7 -7 -6 -6 -5 -5 -5 -4 -3 -2 -2 ----------- Run | Yrd Mat Min Mat Min Exi Min Mat Fac Was Fac Fac Ext Fac Gar Fac Fac Res Res Tes Matter Collected 2956 | 603 . 543 . . . 11 112 141 . 113 122 851 . 96 179 . . 105 80 Remotely . | . . . . . . . . . . . . . . . . . . . . Salvage Created 3409 | 365 . 20 . . . . 232 214 . 72 122 1041 44 176 781 . 86 105 151 Parts 174 | 26 . 6 . . . . 3 9 . 7 5 41 5 13 37 . 6 5 11 Haulers Intercepted 2 | . . . . . . . . . . . . 2 . . . . . . . Recyclers Shooed 3 | . . . . . . . . 2 . . . . . . 1 . . . . Parts Field Recycled . | . . . . . . . . . . . . . . . . . . . . Retrieved Matter . | . . . . . . . . . . . . . . . . . . . . Parts Self-Destructed . | . . . . . . . . . . . . . . . . . . . . Prevented . | . . . . . . . . . . . . . . . . . . . . Kills | -11 -10 -10 -9 -9 -9 -8 -8 -7 -7 -7 -6 -6 -5 -5 -5 -4 -3 -2 -2 ------- Run | Yrd Mat Min Mat Min Exi Min Mat Fac Was Fac Fac Ext Fac Gar Fac Fac Res Res Tes Combat Hostiles Destroyed 56 | . . 3 . . . . 8 8 . 1 4 11 1 7 8 . 4 1 . Melee 7 | . . . . . . . 3 . . . . . . 2 2 . . . . Guns 22 | . . . . . . . . . . . 4 10 . 5 3 . . . . Cannons 8 | . . . . . . . . 5 . . . . . . 3 . . . . AOE 12 | . . 3 . . . . 1 2 . 1 . . 1 . . . 4 . . Classes Destroyed 14 | 3 . 1 . . . . 3 2 . . . 2 1 . 1 . . . 1 Worker 12 | 4 . . . . . . . 1 . 1 . . . . 5 . 1 . . Builder 2 | . . . . . . . 1 1 . . . . . . . . . . . Tunneler 11 | 9 . . . . . . . . . 1 . . 1 . . . . . . Hauler 2 | . . . . . . . . . . . . 2 . . . . . . . Recycler 4 | 1 . . . . . . . . . . . 1 . . 2 . . . . Operator 1 | . . . . . . . . . . . . . . . 1 . . . . Watcher 1 | . . . . . . . . . . . . 1 . . . . . . . Swarmer 24 | . . 3 . . . . . 3 . . 3 . . 7 4 . 4 . . Grunt 16 | . . . . . . . 7 2 . 1 . 6 . . . . . . . Brawler 1 | . . . . . . . . 1 . . . . . . . . . . . Researcher 2 | . . . . . . . . . . . . . . . . . . . 2 Sentry 9 | . . . . . . . 1 1 . . . 3 . . 3 . . 1 . Hunter 1 | . . . . . . . . . . . . . 1 . . . . . . Programmer 4 | . . . . . . . . 1 . . 1 1 . . 1 . . . . Thug 1 | . . . . . . . . . . . . 1 . . . . . . . Best Kill Streak 6 | 6 . 3 . . . . 4 3 . 1 3 4 2 4 4 . 5 1 1 Combat Bots Only 4 | . . 3 . . . . 4 3 . 1 3 2 1 4 2 . 4 1 . Max Kills in Single Turn 4 | 1 . 1 . . . . 1 1 . 1 1 1 2 1 1 . 4 1 1 Gunslinging . | . . . . . . . . . . . . . . . . . . . . Exploded 3 | . . 1 . . . . 1 1 . 1 . . 1 . . . 3 . . Melee 1 | . . . . . . . 1 . . . . . . 1 1 . . . . Uniques/NPCs Destroyed . | . . . . . . . . . . . . . . . . . . . . Combat | -11 -10 -10 -9 -9 -9 -8 -8 -7 -7 -7 -6 -6 -5 -5 -5 -4 -3 -2 -2 -------- Run | Yrd Mat Min Mat Min Exi Min Mat Fac Was Fac Fac Ext Fac Gar Fac Fac Res Res Tes Hostile Shots Fired 1055 | . 2 21 2 . . 36 71 144 . 11 25 133 . 55 95 94 55 6 305 Missed 388 | . . 4 . . . 15 17 44 . 6 10 80 . 15 24 39 20 1 113 Hits 667 | . 2 17 2 . . 21 54 100 . 5 15 53 . 40 71 55 35 5 192 Melee 5 | . . . . . . . . . . . . . . . 5 . . . . Projectile 662 | . 2 17 2 . . 21 54 100 . 5 15 53 . 40 66 55 35 5 192 AOE 4 | . . . . . . . . 1 . . . . . . 1 2 . . . Critical Strikes 22 | . . . . . . 3 3 . . . . 4 . . 4 2 1 . 5 Damage Taken 12385 | 557 35 178 31 . . 323 819 1265 . 184 229 480 . 739 1619 950 797 131 4048 Core 4824 | 184 17 22 . . . 173 414 543 . 91 117 80 . 259 567 551 345 24 1437 Absorbed by Shields 62 | . . . . . . . . . . . . 62 . . . . . . . Core Remaining (%) 38 | 26 . 10 . . . 56 24 . . 9 . 76 . . 17 52 73 . . Volleys Fired 929 | 654 . 5 9 . . 6 5 38 . 15 17 111 5 9 34 . 2 3 16 Largest 2 | 2 . 1 1 . . 1 1 2 . 1 1 2 1 1 1 . 1 1 2 Hottest 200 | 200 . 100 20 . . 20 30 76 . 69 69 80 30 30 81 . 46 94 129 Shots Fired 1138 | 835 . 6 9 . . 6 5 42 . 15 17 131 5 9 34 . 2 3 19 Gun 271 | 47 . . 9 . . 6 . 11 . . 14 131 5 9 20 . . . 19 Cannon 62 | . . . . . . . . 27 . 15 3 . . . 14 . . 3 . Launcher 15 | . . 4 . . . . 5 4 . . . . . . . . 2 . . Special 790 | 788 . 2 . . . . . . . . . . . . . . . . . Kinetic 184 | . . . 9 . . 6 . 26 . . 14 111 5 9 . . . . 4 Thermal 837 | 788 . 2 . . . . . 12 . . . . . . 20 . . . 15 Explosive 15 | . . 4 . . . . 5 4 . . . . . . . . 2 . . Electromagnetic 102 | 47 . . . . . . . . . 15 3 20 . . 14 . . 3 . Robot Hit Streak 21 | 9 . 1 2 . . 4 3 11 . 1 4 20 . 8 15 . 17 20 21 Robot Miss Streak 5 | 3 . 3 4 . . 1 1 3 . 5 1 2 . 1 2 . . . 1 Penetration Max 2 | . . . . . . . . . . . . 2 . . . . . . . Secondary Targets . | . . . . . . . . . . . . . . . . . . . . Shots Hit Robots 281 | 34 . 1 3 . . 4 22 32 . 1 5 93 . 23 47 . 2 3 11 Core Hits 148 | 15 . 3 1 . . 3 8 16 . 3 4 46 1 10 23 . 7 2 6 Critical Kills 3 | . . . . . . . 2 . . . . 1 . . . . . . . Critical Parts Destroyed 11 | . . . . . . . 5 2 . . . 4 . . . . . . . Critical Strikes 22 | 1 . . . . . . 7 3 . . . 5 . 4 2 . . . . Burn 1 | . . . . . . . . . . . . . . . 1 . . . . Destroy 5 | . . . . . . . . . . . . 5 . . . . . . . Blast 1 | . . . . . . . . 1 . . . . . . . . . . . Corrupt 1 | 1 . . . . . . . . . . . . . . . . . . . Smash 9 | . . . . . . . 7 2 . . . . . . . . . . . Sever 5 | . . . . . . . . . . . . . . 4 1 . . . . Melee Attacks 94 | . . . . . . . 25 10 . . . . . 17 39 . . 3 . Impact 40 | . . . . . . . 25 10 . . . . . . 2 . . 3 . Slashing 54 | . . . . . . . . . . . . . . 17 37 . . . . Piercing . | . . . . . . . . . . . . . . . . . . . . Sneak Attacks 6 | . . . . . . . 3 1 . . . . . . 2 . . . . Combat Hostiles 1 | . . . . . . . 1 . . . . . . . . . . . . Follow-up Attacks 1 | . . . . . . . 1 . . . . . . . . . . . . Damage Inflicted 10296 | 696 . 190 23 . . 23 1561 1128 . 486 133 2293 224 1106 1543 . 453 126 311 Guns 4016 | 449 . . 23 . . 23 . 234 . . 122 2293 . 145 462 . . . 265 Cannons 937 | . . . . . . . . 468 . 30 . . . . 320 . . 119 . Explosions 2393 | 247 . 190 . . . . 526 297 . 456 . . 224 . . . 453 . . Melee 2866 | . . . . . . . 1035 127 . . . . . 961 743 . . . . Ramming 84 | . . . . . . . . 2 . . 11 . . . 18 . . 7 46 Kinetic 3018 | . . . 23 . . 23 . 567 . . 122 2060 . 145 . . . . 78 Thermal 1641 | 247 . . . . . . . 135 . 386 . . 224 . 462 . . . 187 Explosive 1536 | . . 190 . . . . 526 297 . 70 . . . . . . 453 . . Electromagnetic 1151 | 449 . . . . . . . . . 30 . 233 . . 320 . . 119 . Impact 1325 | . . . . . . . 1035 127 . . . . . . 163 . . . . Slashing 1541 | . . . . . . . . . . . . . . 961 580 . . . . Piercing . | . . . . . . . . . . . . . . . . . . . . Highest Corruption 30 | 21 21 30 . . . . . 2 2 3 . . . . 13 1 . . 17 Average Corruption 15 | 16 21 29 . . . . . 1 2 2 . . . . 8 1 . . 11 Corruption Purged . | . . . . . . . . . . . . . . . . . . . . Corruption Blocked . | . . . . . . . . . . . . . . . . . . . . Effects 444 | 359 3 25 . . . . . 5 1 13 . . . . 33 . . . 5 Message Errors 128 | 102 2 6 . . . . . 1 1 5 . . . . 10 . . . 1 Matter Fused 92 | 72 . 8 . . . . . 3 . 2 . . . . 7 . . . . Heat Flow Errors 56 | 49 1 1 . . . . . 1 . . . . . . 2 . . . 2 Energy Discharges 64 | 56 . 1 . . . . . . . 2 . . . . 5 . . . . Parts Fused 6 | 4 . 1 . . . . . . . . . . . . 1 . . . . Data Loss (minor) 66 | 52 . 6 . . . . . . . 2 . . . . 4 . . . 2 Data Loss (major) 18 | 16 . . . . . . . . . 1 . . . . 1 . . . . Misfires 1 | . . 1 . . . . . . . . . . . . . . . . . Alerts 12 | 8 . 1 . . . . . . . 1 . . . . 2 . . . . Misdirections 1 | . . . . . . . . . . . . . . . 1 . . . . Overload Shots . | . . . . . . . . . . . . . . . . . . . . Overflow Damage 731 | 9 . 49 . . . . 343 140 . 16 . . 77 13 65 . 19 . . Projectiles 6 | . . . . . . . . 6 . . . . . . . . . . . Explosions 177 | 9 . 49 . . . . . 7 . 16 . . 77 . . . 19 . . Melee 548 | . . . . . . . 343 127 . . . . . 13 65 . . . . Knockbacks 4 | . . . . . . . 2 2 . . . . . . . . . . . Impact 3 | . . . . . . . 2 1 . . . . . . . . . . . Kinetic 1 | . . . . . . . . 1 . . . . . . . . . . . Secondary . | . . . . . . . . . . . . . . . . . . . . Self-Inflicted Damage 175 | 34 . 49 . . . . . . . 72 5 . . . 9 . . . 6 Shots 3 | 1 . 1 . . . . . . . 1 . . . . . . . . . Rammed 5 | . . . . . . . . . . . 2 . . . 2 . . . 1 Targets Rammed 10 | . . . . . . . . 1 . . 2 . . . 2 . . 1 4 Kicked 5 | . . . . . . . . 1 . . . . . . . . . 1 3 Crushed . | . . . . . . . . . . . . . . . . . . . . Highest Temperature 427 | 427 175 238 4 . . 8 2 126 . 119 24 305 . 44 312 . 2 45 265 Average Temperature 101 | 104 162 93 4 . . 8 2 24 . 38 12 89 . 21 92 . 1 25 87 Received Heat Transfer 1459 | . 18 . 9 . . 54 495 270 . 27 . 199 . 72 237 42 9 27 . Effects 30 | 25 . 3 . . . . . . . . . . . . 2 . . . . Shutdowns 3 | 3 . . . . . . . . . . . . . . . . . . . Energy Bleed 4 | 4 . . . . . . . . . . . . . . . . . . . Interference 19 | 14 . 3 . . . . . . . . . . . . 2 . . . . Matter Decay 1 | 1 . . . . . . . . . . . . . . . . . . . Short Circuit 1 | 1 . . . . . . . . . . . . . . . . . . . Damage (minor) 2 | 2 . . . . . . . . . . . . . . . . . . . Siege Activations . | . . . . . . . . . . . . . . . . . . . . Martial Activations . | . . . . . . . . . . . . . . . . . . . . Shielding Activations . | . . . . . . . . . . . . . . . . . . . . Robots Disrupted . | . . . . . . . . . . . . . . . . . . . . Combat Hostiles . | . . . . . . . . . . . . . . . . . . . . Robots Corrupted 8 | . . . . . . . 4 2 . . . 1 . . . . . 1 . Combat Hostiles 7 | . . . . . . . 4 1 . . . 1 . . . . . 1 . Parts Fried 14 | 2 . . . . . . 6 . . . . 1 . . 3 . . 2 . Impact Corruptions 16 | . . . . . . . 9 4 . . . . . . 3 . . . . Robots Melted . | . . . . . . . . . . . . . . . . . . . . Combat Hostiles . | . . . . . . . . . . . . . . . . . . . . Parts Melted 4 | . . . . . . . . 1 . . . . . . 3 . . . . Heat Transferred 1971 | 300 . . . . . . . 185 . 300 . . 150 . 740 . . . 296 Parts Sabotaged . | . . . . . . . . . . . . . . . . . . . . Parts Stolen . | . . . . . . . . . . . . . . . . . . . . Parts Stripped . | . . . . . . . . . . . . . . . . . . . . Power Chain Reactions 3 | 3 . . . . . . . . . . . . . . . . . . . Alert | -11 -10 -10 -9 -9 -9 -8 -8 -7 -7 -7 -6 -6 -5 -5 -5 -4 -3 -2 -2 ------- Run | Yrd Mat Min Mat Min Exi Min Mat Fac Was Fac Fac Ext Fac Gar Fac Fac Res Res Tes Maximum Alert Level 2 | . . . . . . . . . . 1 1 2 2 2 . . . . . Low Security (%) 95 | 100 100 100 100 100 . 100 100 100 100 51 89 54 . . 100 100 100 100 100 Level 1 4 | . . . . . . . . . . 48 10 36 92 84 . . . . . Level 2 . | . . . . . . . . . . . . 9 7 15 . . . . . Level 3 . | . . . . . . . . . . . . . . . . . . . . Level 4 . | . . . . . . . . . . . . . . . . . . . . Level 5 . | . . . . . . . . . . . . . . . . . . . . High Security . | . . . . . . . . . . . . . . . . . . . . Max Security . | . . . . . . . . . . . . . . . . . . . . Peak Influence 445 | 10 . 118 38 6 . . 125 97 14 397 229 438 424 445 191 55 117 48 50 Initial 296 | . . . 33 6 . . . 18 14 . 193 60 205 296 191 4 23 45 . Average 28 | . . 19 30 4 . . 55 30 3 132 134 213 235 341 65 10 46 14 9 Influence Increases 3689 | 70 . 156 15 . . . 273 363 . 555 206 762 249 199 383 135 157 36 130 Destroy 0b10 Robot/C 1460 | . . 60 . . . . 160 160 . 20 80 500 20 160 160 . 80 20 40 Destroy 0b10 Robot/NC 180 | 70 . . . . . . 5 10 . 10 . 35 5 . 40 . 5 . . Destroy Leader 264 | . . 10 . . . . 40 40 . . 20 74 10 10 50 . . 10 . Allied During Kill 85 | . . . . . . . . . . . . 74 2 9 . . . . . Successful Hack 14 | . . . . . . . . . . . . 14 . . . . . . . Disable Machine 735 | . . . . . . . . 45 . 405 60 45 150 15 15 . . . . Destroy Structure 396 | . . 26 . . . . 8 48 . 120 31 20 62 5 28 . 42 6 . Partial Spotted 105 | . . . 15 . . . 15 30 . . 15 . . . . 30 . . . Lose Combat Pursuer 450 | . . 60 . . . . 45 30 . . . . . . 90 105 30 . 90 Influence Decreases 3689 | 70 . 70 83 18 . . 230 366 40 158 480 465 245 258 739 99 120 118 130 Entered New Map 964 | . . . 53 12 . . . 25 26 . 204 63 215 128 174 5 22 37 . Time Decay 2150 | 70 . 40 20 6 . . 200 280 14 148 246 342 30 . 441 74 78 81 80 Lost Part 545 | . . 30 10 . . . 30 61 . 10 30 60 . 110 124 20 10 . 50 Lost Ally 30 | . . . . . . . . . . . . . . 20 . . 10 . . Squads Dispatched 30 | . 1 . 1 . . . 6 3 . 3 2 5 1 . 3 1 . . 4 Investigation 4 | . . . . . . . 1 . . . . 2 1 . . . . . . Extermination 6 | . . . . . . . . 1 . 1 1 . . . 2 . . . 1 Reinforcement 17 | . 1 . 1 . . . 2 2 . 2 1 3 . . 1 1 . . 3 Assault . | . . . . . . . . . . . . . . . . . . . . Garrison 3 | . . . . . . . 3 . . . . . . . . . . . . Intercept . | . . . . . . . . . . . . . . . . . . . . Searches Triggered . | . . . . . . . . . . . . . . . . . . . . Construction Impeded 2 | . . . . . . . . 1 . . . 1 . . . . . . . Haulers Reinforced . | . . . . . . . . . . . . . . . . . . . . Active Scanning Responses . | . . . . . . . . . . . . . . . . . . . . Cargo Convoy Interrupts . | . . . . . . . . . . . . . . . . . . . . Stealth | -11 -10 -10 -9 -9 -9 -8 -8 -7 -7 -7 -6 -6 -5 -5 -5 -4 -3 -2 -2 --------- Run | Yrd Mat Min Mat Min Exi Min Mat Fac Was Fac Fac Ext Fac Gar Fac Fac Res Res Tes Distress Signals 6 | . . . . . . . 1 1 . . . 2 . . . 1 1 . . Communications Jammed . | . . . . . . . . . . . . . . . . . . . . Distress Signals . | . . . . . . . . . . . . . . . . . . . . Times Spotted 170 | . 2 7 3 . . 4 16 15 6 9 5 26 . 10 22 15 10 1 19 Peak Tracking Total 13 | . 2 3 2 . . 4 4 3 6 3 3 3 . 4 4 8 8 1 13 Tactical Retreats 17 | . . 2 . . . . 2 2 . . . . . . 3 3 2 . 3 Traps | -11 -10 -10 -9 -9 -9 -8 -8 -7 -7 -7 -6 -6 -5 -5 -5 -4 -3 -2 -2 ------- Run | Yrd Mat Min Mat Min Exi Min Mat Fac Was Fac Fac Ext Fac Gar Fac Fac Res Res Tes Traps Triggered 13 | . 1 . . . . . . 1 . 3 2 3 . . 2 . . . 1 Indirectly . | . . . . . . . . . . . . . . . . . . . . Trap Hack Attempts . | . . . . . . . . . . . . . . . . . . . . Triggered . | . . . . . . . . . . . . . . . . . . . . Disarmed . | . . . . . . . . . . . . . . . . . . . . Reprogrammed . | . . . . . . . . . . . . . . . . . . . . Reused . | . . . . . . . . . . . . . . . . . . . . Traps Extracted . | . . . . . . . . . . . . . . . . . . . . Installed . | . . . . . . . . . . . . . . . . . . . . Triggered . | . . . . . . . . . . . . . . . . . . . . Machines | -11 -10 -10 -9 -9 -9 -8 -8 -7 -7 -7 -6 -6 -5 -5 -5 -4 -3 -2 -2 ---------- Run | Yrd Mat Min Mat Min Exi Min Mat Fac Was Fac Fac Ext Fac Gar Fac Fac Res Res Tes Machines Disabled 50 | . . . . . . . . 3 . 27 4 4 10 1 1 . . . . Max in Single Turn 8 | . . . . . . . . 1 . 5 3 3 8 1 1 . . . . Energy Cycler 4 | . . . . . . . . . . . . 4 . . . . . . . Machines Repaired . | . . . . . . . . . . . . . . . . . . . . Machines Dismantled . | . . . . . . . . . . . . . . . . . . . . Machines Sabotaged . | . . . . . . . . . . . . . . . . . . . . Overloaded Fab Kills . | . . . . . . . . . . . . . . . . . . . . Hacking | -11 -10 -10 -9 -9 -9 -8 -8 -7 -7 -7 -6 -6 -5 -5 -5 -4 -3 -2 -2 --------- Run | Yrd Mat Min Mat Min Exi Min Mat Fac Was Fac Fac Ext Fac Gar Fac Fac Res Res Tes Machines Accessed 4 | . . . . . . . . . . . . 3 1 . . . . . . Terminals 3 | . . . . . . . . . . . . 3 . . . . . . . Fabricators . | . . . . . . . . . . . . . . . . . . . . Repair Stations . | . . . . . . . . . . . . . . . . . . . . Recycling Units . | . . . . . . . . . . . . . . . . . . . . Scanalyzers . | . . . . . . . . . . . . . . . . . . . . Garrison Access 1 | . . . . . . . . . . . . . 1 . . . . . . Total Hacks 8 | . . . . . . . . . . . . 5 3 . . . . . . Successful 3 | . . . . . . . . . . . . 2 1 . . . . . . Failed 5 | . . . . . . . . . . . . 3 2 . . . . . . Catastrophic 1 | . . . . . . . . . . . . 1 . . . . . . . Database Lockouts . | . . . . . . . . . . . . . . . . . . . . Manual . | . . . . . . . . . . . . . . . . . . . . Terminals 5 | . . . . . . . . . . . . 5 . . . . . . . Fabricators . | . . . . . . . . . . . . . . . . . . . . Repair Stations . | . . . . . . . . . . . . . . . . . . . . Recycling Units . | . . . . . . . . . . . . . . . . . . . . Scanalyzers . | . . . . . . . . . . . . . . . . . . . . Garrison Access 3 | . . . . . . . . . . . . . 3 . . . . . . Terminal Hacks 2 | . . . . . . . . . . . . 2 . . . . . . . Open Door 2 | . . . . . . . . . . . . 2 . . . . . . . Fabricator Hacks . | . . . . . . . . . . . . . . . . . . . . Repair Station Hacks . | . . . . . . . . . . . . . . . . . . . . Recycling Unit Hacks . | . . . . . . . . . . . . . . . . . . . . Scanalyzer . | . . . . . . . . . . . . . . . . . . . . Garrison Access Hacks 1 | . . . . . . . . . . . . . 1 . . . . . . Unlock Access 1 | . . . . . . . . . . . . . 1 . . . . . . Unauthorized Hacks . | . . . . . . . . . . . . . . . . . . . . Terminals . | . . . . . . . . . . . . . . . . . . . . Fabricators . | . . . . . . . . . . . . . . . . . . . . Repair Stations . | . . . . . . . . . . . . . . . . . . . . Recycling Units . | . . . . . . . . . . . . . . . . . . . . Scanalyzers . | . . . . . . . . . . . . . . . . . . . . Garrison Access . | . . . . . . . . . . . . . . . . . . . . Data Cores Recovered 1 | . . . . . . . . . . . . . . . 1 . . . . Used . | . . . . . . . . . . . . . . . . . . . . Hacking Detections 4 | . . . . . . . . . . . . 3 1 . . . . . . Full Trace Events 3 | . . . . . . . . . . . . 2 1 . . . . . . Feedback Events . | . . . . . . . . . . . . . . . . . . . . Feedback Blocked . | . . . . . . . . . . . . . . . . . . . . Robot Schematics Acquired 1 | . . . . . . . . . . . . . . . . . . . 1 Robots Built . | . . . . . . . . . . . . . . . . . . . . Authchips . | . . . . . . . . . . . . . . . . . . . . Time . | . . . . . . . . . . . . . . . . . . . . Total Robot Build Rating . | . . . . . . . . . . . . . . . . . . . . Part Schematics Acquired 4 | . . . . . . . . . . . . . . . . . . . 4 Parts Built . | . . . . . . . . . . . . . . . . . . . . Authchips . | . . . . . . . . . . . . . . . . . . . . Time . | . . . . . . . . . . . . . . . . . . . . Total Part Build Rating . | . . . . . . . . . . . . . . . . . . . . Parts Repaired . | . . . . . . . . . . . . . . . . . . . . Time . | . . . . . . . . . . . . . . . . . . . . Parts Recycled . | . . . . . . . . . . . . . . . . . . . . Recycled Matter . | . . . . . . . . . . . . . . . . . . . . Retrieved Matter . | . . . . . . . . . . . . . . . . . . . . Retrieved Components . | . . . . . . . . . . . . . . . . . . . . Parts Scanalyzed . | . . . . . . . . . . . . . . . . . . . . Part Schematics Acquired . | . . . . . . . . . . . . . . . . . . . . Parts Damaged . | . . . . . . . . . . . . . . . . . . . . Bothacking | -11 -10 -10 -9 -9 -9 -8 -8 -7 -7 -7 -6 -6 -5 -5 -5 -4 -3 -2 -2 ------------ Run | Yrd Mat Min Mat Min Exi Min Mat Fac Was Fac Fac Ext Fac Gar Fac Fac Res Res Tes Used RIF Installer . | . . . . . . . . . . . . . . . . . . . . Robots Hacked . | . . . . . . . . . . . . . . . . . . . . Non-combat . | . . . . . . . . . . . . . . . . . . . . Combat . | . . . . . . . . . . . . . . . . . . . . Robot Hacks Applied . | . . . . . . . . . . . . . . . . . . . . Relay Couplers Released . | . . . . . . . . . . . . . . . . . . . . Fabnet Peak Effective % . | . . . . . . . . . . . . . . . . . . . . Robots Rewired . | . . . . . . . . . . . . . . . . . . . . Allies Hacked . | . . . . . . . . . . . . . . . . . . . . Hacks Repelled . | . . . . . . . . . . . . . . . . . . . . Allies | -11 -10 -10 -9 -9 -9 -8 -8 -7 -7 -7 -6 -6 -5 -5 -5 -4 -3 -2 -2 -------- Run | Yrd Mat Min Mat Min Exi Min Mat Fac Was Fac Fac Ext Fac Gar Fac Fac Res Res Tes Total Allies 2 | . . . . . . . . . . . . 2 . . . . . . . Largest Group 2 | . . . . . . . . . . . . 2 1 1 . . . . . Highest-Rated Group 177 | . . . . . . . . . . . . 177 31 31 . . . . . Highest-Rated Ally 159 | . . . . . . . . . . . . 159 31 31 . . . . . Total Orders . | . . . . . . . . . . . . . . . . . . . . Ally Attacks 64 | . . . . . . . . . . . . 55 . 9 . . . . . Total Damage 2095 | . . . . . . . . . . . . 1946 . 149 . . . . . Kills 18 | . . . . . . . . . . . . 17 . 1 . . . . . Allies Corrupted . | . . . . . . . . . . . . . . . . . . . . Allies Melted . | . . . . . . . . . . . . . . . . . . . . Intel | -11 -10 -10 -9 -9 -9 -8 -8 -7 -7 -7 -6 -6 -5 -5 -5 -4 -3 -2 -2 ------- Run | Yrd Mat Min Mat Min Exi Min Mat Fac Was Fac Fac Ext Fac Gar Fac Fac Res Res Tes Active Infowar (turns) 11586 | 9532 95 514 56 25 50 38 1 . . . . 628 76 210 333 . . . 28 Optics 1094 | . . . . . . . . . . . . 628 76 210 180 . . . . Sensors 30 | . . 1 . . . . 1 . . . . . . . . . . . 28 Terrain 6646 | 5868 95 514 56 25 50 38 . . . . . . . . . . . . . Seismic 3664 | 3664 . . . . . . . . . . . . . . . . . . . Triangulation 252 | . . . . . . . . . . . . 75 24 . 153 . . . . Robot Analysis Total . | . . . . . . . . . . . . . . . . . . . . Derelict Logs Recovered 2 | . . 2 . . . . . . . . . . . . . . . . . Drone Launches 4 | . . . . . . . . . . . . . . . . . 4 . . Drone Recoveries . | . . . . . . . . . . . . . . . . . . . . Exploration | -11 -10 -10 -9 -9 -9 -8 -8 -7 -7 -7 -6 -6 -5 -5 -5 -4 -3 -2 -2 ------------- Run | Yrd Mat Min Mat Min Exi Min Mat Fac Was Fac Fac Ext Fac Gar Fac Fac Res Res Tes Turns Passed 21041 | 13900 95 514 56 25 50 115 475 975 89 709 524 772 76 210 1374 294 200 254 334 Spaces Moved 7589 | 1352 112 609 94 19 40 177 269 601 165 580 512 618 78 183 1047 319 271 236 307 Core 1306 | 165 . 4 . . . 51 269 220 41 . 11 . . . 418 4 . . 123 Treads . | . . . . . . . . . . . . . . . . . . . . Legs 1251 | 514 . . . . . . . 381 . . . . . . 88 . . 153 115 Wheels 1446 | 673 112 405 . . . . . . . . . . . . 20 236 . . . Hover 826 | . . . . . . . . . . . 234 . . . 90 79 271 83 69 Flight 2760 | . . 200 94 19 40 126 . . 124 580 267 618 78 183 431 . . . . Fastest Speed 17 | 50 80 37 37 120 120 40 50 50 40 40 30 25 28 17 30 70 62 62 40 Average Speed 86 | 91 80 66 38 120 120 47 127 116 42 114 79 56 57 68 92 83 67 93 87 Slowest Speed 550 | 120 80 100 120 120 120 120 250 200 50 120 120 112 108 110 445 100 110 110 550 Overloaded Moves . | . . . . . . . . . . . . . . . . . . . . Propulsion Burnouts . | . . . . . . . . . . . . . . . . . . . . Robots Hopped 5 | . . 2 . . . . . . . . 2 1 . . . . . . . Potential Cave-ins 4 | 4 . . . . . . . . . . . . . . . . . . . Cave-ins Triggered 2 | 2 . . . . . . . . . . . . . . . . . . . Exploration Rate (%) 26 | 24 16 82 15 4 9 35 24 16 77 22 15 75 4 25 26 16 6 6 35 Regions Visited 19 Branch Regions 6 Pre-discovered Areas 2 | . . 2 . . . . . . . . . . . . . . . . . Known Exits Taken 1 | . . . . . . . . . . . . . 1 . . . . . . Unknown Exits Taken 15 | 1 1 1 1 1 1 1 1 . . 1 1 1 . . 1 1 1 1 . Scrap Searched 1 | . . 1 . . . . . . . . . . . . . . . . . Spaces Dug 268 | 246 . . . . . . . 6 . . . . . . 14 . . 2 . Terrain Destroyed 704 | 308 . 37 . . . . 9 47 . 143 54 14 52 . 14 . 24 2 . Melee 22 | . . . . . . . . 6 . . . . . . 14 . . 2 . Projectile 302 | 294 . 2 . . . . . 3 . . 2 1 . . . . . . . AOE 380 | 14 . 35 . . . . 9 38 . 143 52 13 52 . . . 24 . . Terrain Rammed . | . . . . . . . . . . . . . . . . . . . . Walls Destroyed . | . . . . . . . . . . . . . . . . . . . . Machines Disabled . | . . . . . . . . . . . . . . . . . . . . Actions | -11 -10 -10 -9 -9 -9 -8 -8 -7 -7 -7 -6 -6 -5 -5 -5 -4 -3 -2 -2 --------- Run | Yrd Mat Min Mat Min Exi Min Mat Fac Was Fac Fac Ext Fac Gar Fac Fac Res Res Tes Total 19263 | 11607 118 711 106 21 43 201 349 814 182 613 608 914 104 240 1381 347 286 261 357 Wait 10232 | 9552 . 80 4 3 . 19 36 104 17 15 61 76 17 24 198 17 3 4 2 Move 7559 | 1350 111 604 93 18 39 176 268 600 164 579 507 615 77 182 1046 318 270 235 307 Hop 5 | . . 2 . . . . . . . . 2 1 . . . . . . . Pick Up 128 | 22 4 5 . . 2 . 6 13 . 1 6 17 1 4 21 6 6 8 6 Fast Attach 26 | 1 . 1 . . . . . 11 1 2 3 4 . 2 1 . . . . Attach 137 | 15 . 9 . . . . 8 16 . . 9 20 3 2 27 6 5 7 10 Detach 28 | 2 . 2 . . . . 2 7 . . 1 5 1 . 5 . . . 3 Swap 2 | 1 . . . . . . . 1 . . . . . . . . . . . Drop 49 | 9 3 3 . . 2 . . 12 . 1 . 11 . . 8 . . . . Fire 929 | 654 . 5 9 . . 6 5 38 . 15 17 111 5 9 34 . 2 3 16 Melee 93 | . . . . . . . 24 10 . . . . . 17 39 . . 3 . Ram 5 | . . . . . . . . . . . 2 . . . 2 . . . 1 Kick 5 | . . . . . . . . 1 . . . . . . . . . 1 3 Crush . | . . . . . . . . . . . . . . . . . . . . Escape Stasis 65 | 1 . . . . . . . 1 . . . 54 . . . . . . 9 Rewire . | . . . . . . . . . . . . . . . . . . . . Trap . | . . . . . . . . . . . . . . . . . . . . Miscellaneous . | . . . . . . . . . . . . . . . . . . . . Route ------- -11/Scrapyard -10/Materials -10/Mines (discovered 2 exits: [*Mat x2]) -9/Materials -9/Mines -9/Exiles -8/Mines -8/Materials -7/Factory -7/Waste -7/Factory -6/Factory -6/Extension (discovered 3 exits: *Fac x2 / [*Cet]) -5/Factory -5/Garrison -5/Factory -4/Factory -3/Research -2/Research (discovered 2 exits: [*Acc] / [*Tes]) -2/Testing History --------- Turn | Location | Event 10 | -11/Scrapyard | Discovered new exit (range 16) 4310 | -11/Scrapyard | Crushed by falling debris 5547 | -11/Scrapyard | Crushed by falling debris 5547 | -11/Scrapyard | Core integrity fell below 50% 5547 | -11/Scrapyard | System corruption reached 10% 5578 | -11/Scrapyard | Lost 3 parts (1n1u1w) 13901 | -11/Scrapyard | Entered Materials 13902 | -10/Materials | Build established: Scavenger-Mutant 13903 | -10/Materials | Discovered new exit (range 16) 13977 | -10/Materials | Core integrity fell below 20% 13996 | -10/Materials | Entered Mines 14003 | -10/Mines | System corruption reached 30% 14038 | -10/Mines | Discovered new exit (range 14) 14187 | -10/Mines | Found a damaged Exp. Sensor Array with a note attached 14189 | -10/Mines | Found Prototype Device 14190 | -10/Mines | Identified Exp. Sensor Array 14290 | -10/Mines | Learned location of Storage (-7) 14342 | -10/Mines | Learned location of Zion (-7) 14353 | -10/Mines | Discovered new exit (range 10) 14368 | -10/Mines | Received a Rocket Launcher from a helpful Derelict 14443 | -10/Mines | Lost 3 parts (1p2w) 14510 | -10/Mines | Entered Materials 14510 | -9/Materials | Evolved 2 slots: Propulsion x2 14555 | -9/Materials | Discovered new exit (range 15) 14566 | -9/Materials | Entered Mines 14582 | -9/Mines | Deemed a non-threat by the Exiles lab entrance 14582 | -9/Mines | Discovered new exit (range 5) 14591 | -9/Mines | Entered Exiles 14628 | -9/Exiles | Discovered new exit (range 14) 14641 | -9/Exiles | Entered Mines 14713 | -8/Mines | Lost 3 parts (1u2w) 14752 | -8/Mines | Discovered new exit (range 7) 14756 | -8/Mines | Entered Materials 14756 | -8/Materials | Evolved 2 slots: Power x1, Propulsion x1 14805 | -8/Materials | Garrison activated, responded to threat 14859 | -8/Materials | Build established: Mutant 15048 | -8/Materials | Core integrity fell below 50% 15207 | -8/Materials | Discovered new exit (range 3) 15231 | -8/Materials | Entered Factory 15231 | -7/Factory | Evolved 2 slots: Propulsion x1, Utility x1 15429 | -7/Factory | Core integrity fell below 50% 15460 | -7/Factory | Lost 4 parts (2u2w) 16206 | -7/Factory | Sucked down chute 16206 | -7/Factory | Entered Waste 16209 | -7/Waste | Lost 4 parts (1p2n1w) 16220 | -7/Waste | Spotted C-40 Crusher 16231 | -7/Waste | Spotted C-40 Crusher 16233 | -7/Waste | Spotted C-40 Crusher 16241 | -7/Waste | Spotted C-40 Crusher 16266 | -7/Waste | Spotted C-40 Crusher 16273 | -7/Waste | Spotted C-40 Crusher 16285 | -7/Waste | Discovered new exit (range 13) 16295 | -7/Waste | Entered Factory 16764 | -7/Factory | Core integrity fell below 20% 16943 | -7/Factory | Discovered new exit (range 16) 17004 | -7/Factory | Entered another Factory area 17004 | -6/Factory | Evolved 2 slots: Utility x2 17513 | -6/Factory | Discovered new exit (range 12) 17528 | -6/Factory | Entered Extension 17589 | -6/Extension | Energy Cycler disabled 17589 | -6/Extension | Rescued a captive Derelict 17589 | -6/Extension | Rescued a captive Derelict 17591 | -6/Extension | Rescued a captive Derelict 17593 | -6/Extension | Rescued a captive Derelict 17593 | -6/Extension | Rescued a captive Derelict 17595 | -6/Extension | Rescued a captive Derelict 17643 | -6/Extension | Rescued A7 17868 | -6/Extension | Spotted B-75 Beast 17927 | -6/Extension | Allies destroyed B-75 Beast 17944 | -6/Extension | Spotted B-75 Beast 17948 | -6/Extension | Discovered new exit (range 19) 17965 | -6/Extension | Allies destroyed B-75 Beast 18078 | -6/Extension | Disrupted transfer network 18120 | -6/Extension | Discovered new exit (range 19) 18120 | -6/Extension | Discovered new exit (range 19) 18218 | -6/Extension | Lost 4 parts (1p1n1u1w) 18300 | -6/Extension | Entered Factory 18300 | -5/Factory | Accompanied by 2 allies (A7) 18300 | -5/Factory | Evolved 2 slots: Propulsion x1, Utility x1 18346 | -5/Factory | Identified exit to Garrison 18376 | -5/Factory | Entered Garrison 18376 | -5/Garrison | Accompanied by 1 ally 18470 | -5/Garrison | Triggered checkpoint 18506 | -5/Garrison | Discovered new exit (range 12) 18526 | -5/Garrison | Triggered checkpoint 18586 | -5/Garrison | Entered Factory 18607 | -5/Factory | Lost 9 parts (1p6n1u1w) 19322 | -5/Factory | Build established: Scavenger-Mutant 19410 | -5/Factory | Core integrity fell below 50% 19460 | -5/Factory | Lost 11 parts (1p6n2u2w) 19699 | -5/Factory | Build established: Mutant 19803 | -5/Factory | System corruption reached 10% 19817 | -5/Factory | Core integrity fell below 20% 19957 | -5/Factory | Discovered new exit (range 3) 19960 | -5/Factory | Entered another Factory area 19960 | -4/Factory | Evolved 2 slots: Power x1, Utility x1 20079 | -4/Factory | Lost 3 parts (2n1u) 20181 | -4/Factory | Spotted B-86 Titan 20249 | -4/Factory | Discovered new exit (range 7) 20254 | -4/Factory | Entered Research 20254 | -3/Research | Evolved 2 slots: Power x1, Weapon x1 20390 | -3/Research | Lost 3 parts (3u) 20394 | -3/Research | Lost 3 allies 20448 | -3/Research | Discovered new exit (range 9) 20454 | -3/Research | Entered another Research area 20454 | -2/Research | Evolved 2 slots: Utility x1, Weapon x1 20606 | -2/Research | Discovered new exit (range 9) 20666 | -2/Research | Discovered new exit (range 7) 20708 | -2/Research | Entered Testing 20805 | -2/Testing | Scanned by Researcher 20810 | -2/Testing | Lost 3 parts (1p2w) 20874 | -2/Testing | Spotted Alpha 7 20897 | -2/Testing | Lost 9 parts (1p4n2u2w) 20918 | -2/Testing | System corruption reached 10% 20927 | -2/Testing | Core integrity fell below 50% 21036 | -2/Testing | Core integrity fell below 20% 21042 | -2/Testing | Destroyed by H-88 Terminator with KE Penetrator Last Messages --------------- Penetrated by Slug. Slug penetrates Sonic Impulse Analyzer. System corrupted: Heat flow error (+233). Penetrated by Slug. Exp. Sensor Array destroyed. Penetrated by Slug. Slug penetrates Sonic Impulse Analyzer. Penetrated by Slug. Lyr. Heavy Armor Plating destroyed. Penetrated by Slug. Imp. Gyrokinetic Inverter destroyed. Penetrated by Slug. Slug penetrates Sonic Impulse Analyzer. Terminal disabled. Slug penetrates Wall. Penetrated by Slug. Slug penetrates Sonic Impulse Analyzer. Slug penetrates H-88 Terminator. Penetrated by Slug. [Achievement: Achiever] Map ----- +----------------------------------------------------+ | ### """ # # ! #??????????????????????? | | ! / # # """ "???????????????????????? | | ### """ # # """ ""#??????????????????????? | | ??# """ # # """ ""#??????????????????????? | | ??# """ # + ""#??????????????????????? | | ??# # # """ ""#??????????????????????? | | ??# !# + """ T????????????????????????? | | ??######## # """ "????????????????????????? | | ?????????# # ""???????????????????????? | | ?????????# # """ ""???????????????????????? | | ?????????# # """ ""#??????????????????????? | | ?????????# # """ "#??????????????????????? | | ?????????# # #??????????????????????? | | ?????????# #############??????????????????????? | | ?????????+ # #??????????????????????? | | ?????????# # """ " #??????????????????????? | | ?????????# # """""" #??????????????????????? | | ??????#### # """""" h #??????????????????????? | | ??????# # hhhx #??????????????????????? | | ??????# # """"""h #??????????????????????? | | ??????# /k """""" #??????????????????????? | | ??????# #hh"""""" #??????????????????????? | | ??????######### #??????????????????????? | | ??????????????# #??????????????????????? | | ??????????????# #??????????????????????? | | ??????????????# ""T" @#??????????????????????? | | ??????????????# """"" #??????????????????????? | | ??????????????#############??????????????????????? | | ?????????????????????????????????????????????????? | | ?????????????????????????????????????????????????? | | ?????????????????????????????????????????????????? | | ?????????????????????????????????????????????????? | | ?????????????????????????????????????????????????? | | ?????????????????????????????????????????????????? | | ?????????????????????????????????????????????????? | | ?????????????????????????????????????????????????? | | ?????????????????????????????????????????????????? | | ?????????????????????????????????????????????????? | | | | | | | | | | | | | | | | | | | | | | | | | +----------------------------------------------------+ Best States ------------- Heat Dissipation 49 Energy Generation 80 Energy Capacity 520 Matter Stores 399 Matter Capacity 450 Sight Range 20 Robot Scan Range 20 Terrain Scan Range 16 Terrain Scan Density 10 Power Amplification 30 EM Shielding 3 Armor Coverage 600 Resistance: KI 20 Resistance: EX 25 Weapon Cycling 15 Melee Speed Boost 20 Phase Shifting 5 Evasion (%) 73 Targeting Accuracy 24 Core Analysis 6 Recoil Reduction 4 Particle Charging 15 Force Boost 20 Defensive Hacking 10 Item Schematics ----------------- Diametric Drive | -2/Testing | Archive Imp. Q-thruster | -2/Testing | Archive Hvy. Proton Cannon | -2/Testing | Archive Exp. Flexi-carbon Leg | -2/Testing | Archive Robot Schematics ------------------ Y-72 Warden | -2/Testing | Archive Fabricated ------------ Nothing Repaired ---------- Nothing Alien Tech Used ----------------- None Achievements -------------- Achiever More Power To You Challenges ------------ None Game ------ Seed AssaultMagneticSaw Manual? 0 Play Time 03:07:42 Cumulative 28.8 hours Start 2025.09.12 @ 05:42:00 End 2025.09.14 @ 17:38:14 Sessions 13 Manual Loads 0 Difficulty Rogue Special Mode None Game No. 31 Rogue 4 Adventurer 0 Explorer 27 Win Type - Total 0 Types 0/0/0/0/0/0/0/0/0/0 Lore% 17 Gallery% 31 Achievement% 25 Wizard Run 0 Options --------- Layout 2 ASCII 0 Keyboard 0 Movement Mouse Keybinds 0 Fullscreen 2 Font 16/SmallcapsGlow Map View 50x44 Zoom Use 0% Tactical HUD 0 Map Filters NONE Filters NONE Steam X RUN: 9ebe07c3-a96f-4c6e-bd25-54e32292f0eb